Cogmind - Beta 15 @@@ ROGUE MODE // 2025.10.19 @ 21:15:07 Player: GolbalwarmingLord Result: Destroyed by as-37012 with Assembled Maul Performance ------------- Evolutions (0) 0 Regions Visited (4) 800 Robots Destroyed (35) 175 Value Destroyed (651) 651 Prototype IDs (2) 40 Alien Tech Used (0) 0 Bonus (300) 300 TOTAL SCORE: 1966 Bonus ------- Aligned with FarCom 300 Cogmind --------- Core Integrity 0/250 Matter 300/300 Energy 100/100 System Corruption 4% Temperature Cool (0) Movement Walking (260) Ox2 Location -9/Mines Parts ------- > --- POWER (1) -------- (None) > --- PROPULSION (2) --- Aluminum Leg > --- UTILITY (2) ------ Large Storage Unit Light Armor Plating > --- WEAPON (2) ------- Light Assault Rifle Makeshift Axe > --- INVENTORY (15) --- Light Ion Engine Reinforced Ion Engine Signal Interpreter Improved Terrain Scanner EM Pulse Gun Light Assault Rifle Light Assault Rifle XL Autogun Array Grenade Launcher Rocket Launcher Mining Laser Peak State ------------ > --- POWER ------------ Ion Engine > --- PROPULSION ------- Aluminum Leg Potential Leg > --- UTILITY ---------- Large Storage Unit Light Armor Plating > --- WEAPON ----------- Light Assault Rifle Light Assault Rifle > --- INVENTORY -------- Light Ion Engine Signal Interpreter Improved Terrain Scanner Light Armor Plating EM Pulse Gun Light Assault Rifle Grenade Launcher Mining Laser [Rating: 17] Favorites ----------- Power Ion Engine Engine Ion Engine Propulsion Aluminum Leg Treads Light Treads Leg Aluminum Leg Wheel Wheel Flight Unit Flight Unit Utility Large Storage Unit Device Improved Terrain Scanner Storage Large Storage Unit Protection Light Armor Plating Weapon Light Assault Rifle Energy Gun EM Pulse Gun Ballistic Gun Light Assault Rifle Launcher Grenade Launcher Slashing Weapon Makeshift Axe Build | -11 -10 -10 -10 -9 ------- Run | Yrd Mat Min Exi Min Slots Evolved . | . . . . . Power . | . . . . . Propulsion . | . . . . . Utility . | . . . . . Weapon . | . . . . . Parts Attached 25 | 9 10 1 2 3 Power 2 | 1 1 . . . Engine 2 | 1 1 . . . Core . | . . . . . Reactor . | . . . . . Propulsion 9 | 2 6 . 1 . Treads 2 | 2 . . . . Leg 3 | . 2 . 1 . Wheel 2 | . 2 . . . Hover . | . . . . . Flight 2 | . 2 . . . Utility 6 | 3 1 1 . 1 Device 2 | 2 . . . . Storage 2 | 1 1 . . . Processor . | . . . . . Hackware . | . . . . . Protection 2 | . . 1 . 1 Artifact . | . . . . . Weapon 8 | 3 2 . 1 2 Energy Gun 1 | 1 . . . . Energy Cannon . | . . . . . Ballistic Gun 3 | 2 1 . . . Ballistic Cannon . | . . . . . Launcher 2 | . 1 . . 1 Special Weapon . | . . . . . Impact Weapon . | . . . . . Slashing Weapon 2 | . . . 1 1 Piercing Weapon . | . . . . . Special Melee Weapon . | . . . . . Unidentified Prototypes 2 | . . . 2 . Parts Lost 9 | . 6 1 . 2 Power 2 | . 1 . . 1 Propulsion 5 | . 4 1 . . Utility 2 | . 1 . . 1 Weapon . | . . . . . Highest Loss Streak 2 | . 2 1 . 2 To Critical Strikes 1 | . . 1 . . Average Backups 6 | 1 4 8 8 9 Power . | . . 1 1 1 Propulsion . | 1 . . . . Utility 1 | . 1 3 3 2 Weapon 3 | . 1 4 4 5 Tool/Special . | . . . . . Unused Backups 5 | . . . . 5 Power 2 | . . . . 2 Propulsion . | . . . . . Utility 1 | . . . . 1 Weapon 2 | . . . . 2 Tool/Special . | . . . . . Average Slot Usage (%) 86 | . 91 94 80 70 Engine 8 | . 7 14 14 . Treads 3 | . 6 . . . Leg 17 | . 18 22 14 14 Device 6 | . 13 . . . Storage 14 | . 14 14 14 14 Protection 6 | . . 13 14 13 Ballistic Gun 24 | . 25 27 23 22 Launcher 1 | . 1 . . 2 Peak Build Rating 17 | 9 9 9 17 13 Average Rating 8 | 6 8 7 7 9 On Entrance 6 | . 7 9 7 9 Naked Turns . | . . . . . Heaviest Build 30 | 13 30 30 30 28 Greatest Support 40 | 40 40 20 10 10 Greatest Overweight (x) 7 | . 7 2 2 2 Average Overweight (x) 1 | . . 1 2 2 Largest Inventory Capacity 15 | 8 15 15 15 15 Average Capacity 13 | 7 13 15 15 15 Most Carried 14 | 4 8 8 13 14 Average Carried 6 | 1 4 8 9 12 Final Capacity 15 | 8 15 15 15 15 Final Carried 14 | 4 8 8 13 14 Class Distribution -------------------- 100% | Mutant Dominant Class ---------------- Mutant | -10/Materials Mutant | -10/Mines Mutant | -10/Exiles Mutant | -9/Mines Resources | -11 -10 -10 -10 -9 ----------- Run | Yrd Mat Min Exi Min Matter Collected 710 | 316 244 60 . 90 Remotely . | . . . . . Salvage Created 1013 | 196 573 92 . 152 Parts 74 | 17 35 10 . 12 Haulers Intercepted . | . . . . . Recyclers Shooed 5 | . 5 . . . Parts Field Recycled . | . . . . . Retrieved Matter . | . . . . . Parts Self-Destructed . | . . . . . Prevented . | . . . . . Kills | -11 -10 -10 -10 -9 ------- Run | Yrd Mat Min Exi Min Combat Hostiles Destroyed 24 | . 17 5 . 2 Guns 22 | . 16 4 . 2 AOE 2 | . 1 1 . . Classes Destroyed 7 | 3 2 . . 2 Worker 2 | 1 . . . 1 Builder 1 | . . . . 1 Tunneler 6 | 4 1 . . 1 Recycler 2 | 1 1 . . . Swarmer 11 | . 8 3 . . Grunt 12 | . 9 2 . 1 Brawler 1 | . . . . 1 Best Kill Streak 7 | 3 7 3 . 3 Combat Bots Only 5 | . 5 3 . 2 Max Kills in Single Turn 2 | 1 2 1 . 1 Gunslinging . | . . . . . Exploded 1 | . 1 1 . . Melee . | . . . . . Uniques/NPCs Destroyed . | . . . . . Combat | -11 -10 -10 -10 -9 -------- Run | Yrd Mat Min Exi Min Hostile Shots Fired 167 | . 122 37 . 8 Missed 40 | . 30 9 . 1 Hits 127 | . 92 28 . 7 Melee 4 | . . . . 4 Projectile 123 | . 92 28 . 3 Critical Strikes 2 | . 1 1 . . Damage Taken 1393 | . 968 281 . 144 Core 253 | . 211 20 . 22 Absorbed by Shields . | . . . . . Core Remaining (%) 100 | 100 . . . . Volleys Fired 115 | 18 68 19 . 10 Largest 2 | 2 2 2 . 2 Hottest 60 | 40 60 50 . 40 Shots Fired 216 | 36 136 32 . 12 Gun 214 | 36 136 30 . 12 Cannon . | . . . . . Launcher 2 | . . 2 . . Special . | . . . . . Kinetic 201 | 36 123 30 . 12 Thermal . | . . . . . Explosive 2 | . . 2 . . Electromagnetic 13 | . 13 . . . Robot Hit Streak 12 | 5 12 7 . 8 Robot Miss Streak 3 | 2 3 2 . 1 Penetration Max . | . . . . . Secondary Targets 2 | . 1 1 . . Max Gunslinging Chain 1 | . 1 1 . . Shots Hit Robots 143 | 23 85 20 . 15 Core Hits 65 | 11 37 9 . 8 Critical Kills 1 | . 1 . . . Critical Parts Destroyed 1 | . 1 . . . Critical Strikes 2 | . 2 . . . Destroy 2 | . 2 . . . Melee Attacks 6 | . . . . 6 Impact . | . . . . . Slashing 6 | . . . . 6 Piercing . | . . . . . Sneak Attacks 5 | . . . . 5 Combat Hostiles . | . . . . . Follow-up Attacks . | . . . . . Damage Inflicted 1743 | 188 874 260 . 421 Guns 1178 | 188 766 146 . 78 Cannons . | . . . . . Explosions 190 | . 76 114 . . Melee 343 | . . . . 343 Ramming 32 | . 32 . . . Kinetic 1069 | 188 657 146 . 78 Thermal 76 | . 76 . . . Explosive 114 | . . 114 . . Electromagnetic 109 | . 109 . . . Impact . | . . . . . Slashing 343 | . . . . 343 Piercing . | . . . . . Highest Corruption 4 | . . . . 4 Average Corruption 4 | . . . . 4 Corruption Purged . | . . . . . Corruption Blocked . | . . . . . Effects 14 | . . . . 14 Message Errors 5 | . . . . 5 Matter Fused 3 | . . . . 3 Heat Flow Errors 1 | . . . . 1 Energy Discharges 3 | . . . . 3 Data Loss (minor) 1 | . . . . 1 Data Loss (major) 1 | . . . . 1 Overload Shots . | . . . . . Overflow Damage 76 | . . . . 76 Projectiles . | . . . . . Explosions . | . . . . . Melee 76 | . . . . 76 Knockbacks . | . . . . . Impact . | . . . . . Kinetic . | . . . . . Secondary . | . . . . . Self-Inflicted Damage . | . . . . . Shots . | . . . . . Rammed 7 | . 7 . . . Targets Rammed 12 | . 12 . . . Kicked 4 | . 4 . . . Crushed 1 | . 1 . . . Highest Temperature 158 | . 82 30 . 158 Average Temperature 26 | . 29 9 . 49 Received Heat Transfer 333 | . 234 81 . 18 Siege Activations . | . . . . . Martial Activations . | . . . . . Shielding Activations . | . . . . . Robots Disrupted . | . . . . . Combat Hostiles . | . . . . . Robots Corrupted . | . . . . . Combat Hostiles . | . . . . . Parts Fried . | . . . . . Impact Corruptions . | . . . . . Robots Melted . | . . . . . Combat Hostiles . | . . . . . Parts Melted . | . . . . . Heat Transferred 50 | . 50 . . . Parts Sabotaged . | . . . . . Parts Stolen . | . . . . . Parts Stripped . | . . . . . Power Chain Reactions 1 | . 1 . . . Alert | -11 -10 -10 -10 -9 ------- Run | Yrd Mat Min Exi Min Maximum Alert Level . | . . . . . Low Security (%) 100 | 100 100 100 . 100 Level 1 . | . . . . . Level 2 . | . . . . . Level 3 . | . . . . . Level 4 . | . . . . . Level 5 . | . . . . . High Security . | . . . . . Max Security . | . . . . . Peak Influence 120 | 10 120 77 . 30 Initial 29 | . . 29 . . Average 18 | . 25 22 . 2 Influence Increases 674 | 30 450 128 . 66 Destroy 0b10 Robot/C 480 | . 340 100 . 40 Destroy 0b10 Robot/NC 55 | 30 10 . . 15 Destroy Leader 100 | . 70 20 . 10 Successful Hack 9 | . 9 . . . Disable Machine 15 | . 15 . . . Destroy Structure 15 | . 6 8 . 1 Influence Decreases 674 | 30 374 204 . 66 Entered New Map 47 | . . 47 . . Time Decay 565 | 30 332 147 . 56 Lost Part 62 | . 42 10 . 10 Squads Dispatched 3 | . 3 . . . Investigation 1 | . 1 . . . Extermination . | . . . . . Reinforcement 2 | . 2 . . . Assault . | . . . . . Garrison . | . . . . . Intercept . | . . . . . Searches Triggered . | . . . . . Construction Impeded . | . . . . . Haulers Reinforced . | . . . . . Active Scanning Responses . | . . . . . Cargo Convoy Interrupts . | . . . . . Stealth | -11 -10 -10 -10 -9 --------- Run | Yrd Mat Min Exi Min Distress Signals 4 | . 4 . . . Communications Jammed . | . . . . . Distress Signals . | . . . . . Times Spotted 53 | . 40 5 . 8 Peak Tracking Total 7 | . 7 3 . 4 Tactical Retreats . | . . . . . Traps | -11 -10 -10 -10 -9 ------- Run | Yrd Mat Min Exi Min Traps Triggered 3 | . 3 . . . Indirectly . | . . . . . Trap Hack Attempts . | . . . . . Triggered . | . . . . . Disarmed . | . . . . . Reprogrammed . | . . . . . Reused . | . . . . . Traps Extracted . | . . . . . Installed . | . . . . . Triggered . | . . . . . Machines | -11 -10 -10 -10 -9 ---------- Run | Yrd Mat Min Exi Min Machines Disabled 1 | . 1 . . . Max in Single Turn 1 | . 1 . . . Machines Repaired . | . . . . . Machines Dismantled . | . . . . . Machines Sabotaged . | . . . . . Overloaded Fab Kills . | . . . . . Hacking | -11 -10 -10 -10 -9 --------- Run | Yrd Mat Min Exi Min Machines Accessed 10 | . 7 . 3 . Terminals 5 | . 5 . . . Fabricators . | . . . . . Repair Stations . | . . . . . Recycling Units 2 | . 2 . . . Scanalyzers . | . . . . . Garrison Access . | . . . . . Total Hacks 44 | . 18 . 26 . Successful 33 | . 7 . 26 . Failed 11 | . 11 . . . Catastrophic 3 | . 3 . . . Database Lockouts . | . . . . . Manual 4 | . 3 . 1 . Terminals 13 | . 13 . . . Fabricators . | . . . . . Repair Stations . | . . . . . Recycling Units 5 | . 5 . . . Scanalyzers . | . . . . . Garrison Access . | . . . . . Terminal Hacks 31 | . 5 . 26 . Record 26 | . . . 26 . Alert Level 1 | . 1 . . . Locate Traps 2 | . 2 . . . Zone Layout 2 | . 2 . . . Fabricator Hacks . | . . . . . Repair Station Hacks . | . . . . . Recycling Unit Hacks 2 | . 2 . . . Retrieve Components 2 | . 2 . . . Scanalyzer . | . . . . . Garrison Access Hacks . | . . . . . Unauthorized Hacks . | . . . . . Terminals . | . . . . . Fabricators . | . . . . . Repair Stations . | . . . . . Recycling Units . | . . . . . Scanalyzers . | . . . . . Garrison Access . | . . . . . Data Cores Recovered . | . . . . . Used . | . . . . . Hacking Detections 6 | . 6 . . . Full Trace Events 1 | . 1 . . . Feedback Events . | . . . . . Feedback Blocked . | . . . . . Robot Schematics Acquired . | . . . . . Robots Built . | . . . . . Authchips . | . . . . . Time . | . . . . . Total Robot Build Rating . | . . . . . Part Schematics Acquired . | . . . . . Parts Built . | . . . . . Authchips . | . . . . . Time . | . . . . . Total Part Build Rating . | . . . . . Parts Repaired . | . . . . . Time . | . . . . . Parts Recycled . | . . . . . Recycled Matter . | . . . . . Retrieved Matter . | . . . . . Retrieved Components 10 | . 10 . . . Parts Scanalyzed . | . . . . . Part Schematics Acquired . | . . . . . Parts Damaged . | . . . . . Bothacking | -11 -10 -10 -10 -9 ------------ Run | Yrd Mat Min Exi Min Used RIF Installer . | . . . . . Robots Hacked . | . . . . . Non-combat . | . . . . . Combat . | . . . . . Robot Hacks Applied . | . . . . . Relay Couplers Released . | . . . . . Fabnet Peak Effective % . | . . . . . Robots Rewired . | . . . . . Allies Hacked . | . . . . . Hacks Repelled . | . . . . . Allies | -11 -10 -10 -10 -9 -------- Run | Yrd Mat Min Exi Min Total Allies . | . . . . . Largest Group . | . . . . . Highest-Rated Group . | . . . . . Highest-Rated Ally . | . . . . . Total Orders . | . . . . . Ally Attacks . | . . . . . Total Damage . | . . . . . Kills . | . . . . . Allies Corrupted . | . . . . . Allies Melted . | . . . . . Intel | -11 -10 -10 -10 -9 ------- Run | Yrd Mat Min Exi Min Active Infowar (turns) 2237 | 65 2155 17 . . Terrain 1964 | 59 1888 17 . . Seismic 273 | 6 267 . . . Robot Analysis Total . | . . . . . Derelict Logs Recovered 1 | . . . . 1 Drone Launches . | . . . . . Drone Recoveries . | . . . . . Exploration | -11 -10 -10 -10 -9 ------------- Run | Yrd Mat Min Exi Min Turns Passed 4584 | 251 2169 443 1034 687 Spaces Moved 1978 | 120 1029 184 396 249 Core 12 | 8 4 . . . Treads 374 | 112 262 . . . Legs 1564 | . 735 184 396 249 Wheels 21 | . 21 . . . Hover . | . . . . . Flight 7 | . 7 . . . Fastest Speed 50 | 50 95 190 260 260 Average Speed 210 | 152 185 214 260 260 Slowest Speed 400 | 160 400 260 260 260 Overloaded Moves . | . . . . . Propulsion Burnouts . | . . . . . Robots Hopped . | . . . . . Potential Cave-ins . | . . . . . Cave-ins Triggered . | . . . . . Exploration Rate (%) 50 | 8 96 33 63 54 Regions Visited 4 Branch Regions 3 Pre-discovered Areas . | . . . . . Known Exits Taken . | . . . . . Unknown Exits Taken 4 | 1 1 1 1 . Scrap Searched . | . . . . . Spaces Dug 1 | . . . . 1 Terrain Destroyed 20 | . 5 14 . 1 Melee 1 | . . . . 1 Projectile . | . . . . . AOE 19 | . 5 14 . . Terrain Rammed . | . . . . . Walls Destroyed . | . . . . . Machines Disabled . | . . . . . Actions | -11 -10 -10 -10 -9 --------- Run | Yrd Mat Min Exi Min Total 2195 | 155 1159 207 402 272 Wait 26 | 4 19 3 . . Move 1974 | 119 1028 183 395 249 Hop . | . . . . . Pick Up 24 | 5 13 . 3 3 Fast Attach 6 | 6 . . . . Attach 11 | 1 7 . 1 2 Detach . | . . . . . Swap 16 | 2 9 2 1 2 Drop 5 | . 3 . 2 . Fire 115 | 18 68 19 . 10 Melee 6 | . . . . 6 Ram 1 | . 1 . . . Kick 4 | . 4 . . . Crush 7 | . 7 . . . Escape Stasis . | . . . . . Rewire . | . . . . . Trap . | . . . . . Miscellaneous . | . . . . . Route ------- -11/Scrapyard -10/Materials (discovered 5 exits: [*Mat x3] / [*Min x2]) -10/Mines -10/Exiles -9/Mines History --------- Turn | Location | Event 9 | -11/Scrapyard | Discovered new exit (range 15) 252 | -11/Scrapyard | Entered Materials 305 | -10/Materials | Build established: Mutant 579 | -10/Materials | Discovered new exit (range 7) 823 | -10/Materials | Core integrity fell below 50% 1068 | -10/Materials | Discovered new exit (range 13) 1708 | -10/Materials | Discovered new exit (range 13) 1832 | -10/Materials | Discovered new exit (range 10) 2011 | -10/Materials | Discovered new exit (range 17) 2091 | -10/Materials | Core integrity fell below 20% 2421 | -10/Materials | Entered Mines 2846 | -10/Mines | Deemed a non-threat by the Exiles lab entrance 2849 | -10/Mines | Discovered new exit (range 5) 2864 | -10/Mines | Entered Exiles 2961 | -10/Exiles | Met 8R-AWN 3015 | -10/Exiles | Met EX-HEX 3130 | -10/Exiles | Met EX-BIN 3187 | -10/Exiles | Aligned with FarCom system 3189 | -10/Exiles | Given EX-Vault access code 3559 | -10/Exiles | Opened EX-Vault 3585 | -10/Exiles | Found Prototype Leg 3586 | -10/Exiles | Identified Potential Leg 3592 | -10/Exiles | Found Prototype Slashing Weapon 3593 | -10/Exiles | Identified Longsword +1 3601 | -10/Exiles | Found Prototype Ballistic Gun 3654 | -10/Exiles | Warned to stay clear of 0b10 Research branches 3670 | -10/Exiles | Exiles lab attacked by MAIN.C 3867 | -10/Exiles | Discovered new exit (range 12) 3898 | -10/Exiles | Left Exiles lab with XL Autogun Array 3898 | -10/Exiles | Entered Mines 4331 | -9/Mines | Received a Rocket Launcher from a helpful Derelict 4451 | -9/Mines | A weapon hastily lodged in a ceiling crevice suddenly fell to the ground 4518 | -9/Mines | Found a hidden stash of uninstalled traps 4541 | -9/Mines | Learned Materials terminal intel 4566 | -9/Mines | Assembled infested the area 4571 | -9/Mines | Assisted by a Guerilla fighting off Assembled 4585 | -9/Mines | Destroyed by as-37012 with Assembled Maul Last Messages --------------- Acquired 20 matter. U-05 Engineer builds a Wall. R-06 Scavenger collects Lgt. Ion Engine. Sneak attack on U-05 Engineer. Destroyed Wheel. Destroyed Welding Torch. K-01 Serf collects debris. Sneak attack on U-05 Engineer. U-05 Engineer destroyed. Acquired derelict log, extracted data. Data stored: Materials terminal intel. K-01 Serf collects debris. System corrupted: Energy discharge (-22). ALERT: Infestation in the mines, dispatching Demolisher response squad. A derelict emerges from the shadows: "You need to get out of here! I've been tracking a group of Assembled to figure out where they're coming from, and they're closing on this area, come on!" Map ----- +----------------------------------------------------+ | | | | | | | | | | | | | | | | | ????????????????????????????????????????????????? | | ????????????????????????????????????????????????? | | ????????????????????????????????????????????????? | | ????##??????????????????????????????????????????? | | ???# ##?????????#####???????????????????????????? | | ???# #????????## ##??????????????????????????? | | ???# #???????## #??????????????????????????? | | ??## ######### #??????????????????????????? | | ### #?# #???????????????????????????? | | #?# ####### #???????????????????????????? | | #?# #?????## #???????????????????????????? | | #?# #?????## &##??????????????????????????? | | #?# #?????# & &#??????????????????????????? | | ##?# ##????# &&*#??????????????????????????? | | ##?## ##???## *|##?????####?????????????????? | | ##### #????##= ##???## ##????????????????? | | ### #?????#r%###### ##???????????????? | | ## #?????# z @a a #???????????????? | | ##?????# ####### #???????????????? | | ##??? #?????? a #??????????????? | | #### # ##??# #??????? #???????????? | | ???# ####???# ??????? a a =?????????? | | ??? #??????## ???????? % ????????? | | ?? ???????## # ???????? ????????? | | ?# ????????# ## ????????? ????????? | | ?# #????????# ?####???????? ?????????? | | ?# #????????# ?????????????? ## ?????????? | | # ????????#d??????????????? #???????????? | | #???????# ???????????????? #???????????? | | #???????? d???????????????? ????????????? | | #???????????????????????????? ??????????????? | | #####???????????????????????????????????????????? | | #???????????????????????????????????????????????? | | ????????????????????????????????????????????????? | | ????????????????????????????????????????????????? | | ????????????????????????????????????????????????? | | ????????????????????????????????????????????????? | | ????????????????????????????????????????????????? | | ????????????????????????????????????????????????? | | ????????????????????????????????????????????????? | | ????????????????????????????????????????????????? | | ????????????????????????????????????????????????? | +----------------------------------------------------+ Best States ------------- Heat Dissipation 25 Energy Generation 10 Energy Capacity 250 Matter Stores 300 Matter Capacity 300 Sight Range 16 Terrain Scan Range 16 Terrain Scan Density 10 Armor Coverage 150 Evasion (%) 41 Recoil Reduction 2 Item Schematics ----------------- None Robot Schematics ------------------ None Fabricated ------------ Nothing Repaired ---------- Nothing Alien Tech Used ----------------- None Achievements -------------- None Challenges ------------ None Game ------ Seed UtilityBackupKinecellerator Manual? 0 Play Time 00:21:57 Cumulative 10.7 hours Start 2025.10.19 @ 20:51:03 End 2025.10.19 @ 21:15:07 Sessions 1 Manual Loads 0 Difficulty Rogue Special Mode None Game No. 19 Rogue 11 Adventurer 8 Explorer 0 Win Type - Total 0 Types 0/0/0/0/0/0/0/0/0/0 Lore% 9 Gallery% 15 Achievement% 19 Wizard Run 0 Options --------- Layout 1 ASCII 0 Keyboard 0 Movement Arrows Keybinds 0 Fullscreen 1 Font 24/Smallcaps Map View 50x40 Zoom Use 0% Tactical HUD 0 Map Filters NONE Filters NONE Steam 1 RUN: ac7f11cf-2d7f-4769-818a-29d6aa0bf96f